[Event "Titled Tuesday Blitz July 25 Early 2023"]
[White "Grandelius, Nils"]
[Black "Leon Oquendo, Jorge"]
[WhiteFideId "1710400"]
[BlackFideId "3514803"]
[WhiteElo "2878"]
[BlackElo "2730"]
[Result "0-1"]
[Round "8"]
[TimeControl "180+2"]
[Date "2023.07.25"]
[WhiteClock "0:00:03"]
[BlackClock "0:00:33"]
[Board "17"]

1. d4 {[%clk 0:03:00]}  Nf6 {[%clk 0:02:59]} 2. Nf3 {[%clk 0:03:00]}  d5 {[%clk 0:02:58]} 3. c3 {[%clk 0:03:01]}  Bg4 {[%clk 0:02:56]} 4. Ne5 {[%clk 0:02:50]}  Bf5 {[%clk 0:02:55]} 5. Qb3 {[%clk 0:02:50]}  Qc8 {[%clk 0:02:54]} 6. c4 {[%clk 0:02:46]}  e6 {[%clk 0:02:52]} 7. cxd5 {[%clk 0:02:37]}  exd5 {[%clk 0:02:51]} 8. Bg5 {[%clk 0:02:33]}  c6 {[%clk 0:02:38]} 9. Bxf6 {[%clk 0:02:33]}  gxf6 {[%clk 0:02:38]} 10. Nf3 {[%clk 0:02:34]}  Bd6 {[%clk 0:02:36]} 11. Nc3 {[%clk 0:02:33]}  Nd7 {[%clk 0:02:36]} 12. Rc1 {[%clk 0:02:29]}  Qb8 {[%clk 0:02:32]} 13. g3 {[%clk 0:02:24]}  Nf8 {[%clk 0:02:24]} 14. Bg2 {[%clk 0:02:19]}  Ng6 {[%clk 0:02:22]} 15. O-O {[%clk 0:02:07]}  Be6 {[%clk 0:02:21]} 16. Qc2 {[%clk 0:02:03]}  f5 {[%clk 0:02:18]} 17. e3 {[%clk 0:01:51]}  h5 {[%clk 0:02:17]} 18. Ne2 {[%clk 0:01:47]}  h4 {[%clk 0:02:15]} 19. Nf4 {[%clk 0:01:47]}  hxg3 {[%clk 0:02:11]} 20. fxg3 {[%clk 0:01:38]}  Qc7 {[%clk 0:02:07]} 21. a3 {[%clk 0:01:16]}  O-O-O {[%clk 0:01:55]} 22. b4 {[%clk 0:01:16]}  Kb8 {[%clk 0:01:56]} 23. b5 {[%clk 0:01:12]}  cxb5 {[%clk 0:01:54]} 24. Qb3 {[%clk 0:01:09]}  Qb6 {[%clk 0:01:48]} 25. Nxd5 {[%clk 0:00:58]}  Bxd5 {[%clk 0:01:43]} 26. Qxd5 {[%clk 0:00:59]}  Bxa3 {[%clk 0:01:43]} 27. Qxf5 {[%clk 0:00:53]}  Bxc1 {[%clk 0:01:43]} 28. Rxc1 {[%clk 0:00:54]}  Rc8 {[%clk 0:01:32]} 29. Rb1 {[%clk 0:00:54]}  b4 {[%clk 0:01:31]} 30. Qxf7 {[%clk 0:00:52]}  a5 {[%clk 0:01:29]} 31. Qb3 {[%clk 0:00:42]}  Rc3 {[%clk 0:01:16]} 32. Qf7 {[%clk 0:00:24]}  Rhc8 {[%clk 0:01:12]} 33. h4 {[%clk 0:00:22]}  b3 {[%clk 0:01:06]} 34. h5 {[%clk 0:00:22]}  Nh8 {[%clk 0:01:00]} 35. Qf4+ {[%clk 0:00:20]}  Ka7 {[%clk 0:00:59]} 36. Kh2 {[%clk 0:00:18]}  Rc1 {[%clk 0:00:50]} 37. Rxc1 {[%clk 0:00:16]}  Rxc1 {[%clk 0:00:51]} 38. Nd2 {[%clk 0:00:14]}  b2 {[%clk 0:00:51]} 39. Be4 {[%clk 0:00:14]}  Qb4 {[%clk 0:00:48]} 40. Qf2 {[%clk 0:00:14]}  a4 {[%clk 0:00:45]} 41. Bb1 {[%clk 0:00:07]}  a3 {[%clk 0:00:44]} 42. e4 {[%clk 0:00:07]}  Rxb1 {[%clk 0:00:42]} 43. d5+ {[%clk 0:00:03]}  Ka8 {[%clk 0:00:33]} 0-1


[Site "https://www.chess.com"]

[Event "Titled Tuesday Blitz July 25 Early 2023"]
[White "Csonka, Balazs"]
[Black "Shimanov, Aleksandr"]
[WhiteFideId "742910"]
[BlackFideId "4198603"]
[WhiteElo "2760"]
[BlackElo "2999"]
[Result "0-1"]
[Round "8"]
[TimeControl "180+2"]
[Date "2023.07.25"]
[WhiteClock "0:00:01"]
[BlackClock "0:00:06"]
[Board "18"]

1. d4 {[%clk 0:03:00]}  Nf6 {[%clk 0:02:55]} 2. c4 {[%clk 0:02:59]}  g6 {[%clk 0:02:53]} 3. Nc3 {[%clk 0:02:59]}  Bg7 {[%clk 0:02:53]} 4. e4 {[%clk 0:02:57]}  d6 {[%clk 0:02:53]} 5. Nf3 {[%clk 0:02:53]}  O-O {[%clk 0:02:51]} 6. Be2 {[%clk 0:02:54]}  Nbd7 {[%clk 0:02:52]} 7. Be3 {[%clk 0:02:47]}  e5 {[%clk 0:02:51]} 8. d5 {[%clk 0:02:47]}  Ng4 {[%clk 0:02:50]} 9. Bg5 {[%clk 0:02:47]}  f6 {[%clk 0:02:50]} 10. Bh4 {[%clk 0:02:41]}  h5 {[%clk 0:02:49]} 11. Nd2 {[%clk 0:02:34]}  Nh6 {[%clk 0:02:49]} 12. f3 {[%clk 0:02:31]}  Nf7 {[%clk 0:02:45]} 13. O-O {[%clk 0:02:29]}  Bh6 {[%clk 0:02:44]} 14. Bf2 {[%clk 0:02:29]}  a5 {[%clk 0:02:19]} 15. b3 {[%clk 0:02:10]}  f5 {[%clk 0:02:12]} 16. a3 {[%clk 0:02:03]}  Nf6 {[%clk 0:02:08]} 17. c5 {[%clk 0:01:57]}  Bd7 {[%clk 0:01:40]} 18. Nc4 {[%clk 0:01:53]}  Re8 {[%clk 0:01:26]} 19. b4 {[%clk 0:01:48]}  a4 {[%clk 0:01:08]} 20. cxd6 {[%clk 0:01:26]}  Nxd6 {[%clk 0:01:09]} 21. Nxd6 {[%clk 0:01:25]}  cxd6 {[%clk 0:01:10]} 22. Bd3 {[%clk 0:01:02]}  Qe7 {[%clk 0:00:54]} 23. Qe2 {[%clk 0:00:52]}  Rec8 {[%clk 0:00:52]} 24. Nb5 {[%clk 0:00:53]}  fxe4 {[%clk 0:00:46]} 25. fxe4 {[%clk 0:00:44]}  Ng4 {[%clk 0:00:46]} 26. h3 {[%clk 0:00:31]}  Nxf2 {[%clk 0:00:43]} 27. Qxf2 {[%clk 0:00:32]}  Rf8 {[%clk 0:00:39]} 28. Qb6 {[%clk 0:00:21]}  Bxb5 {[%clk 0:00:34]} 29. Qxb5 {[%clk 0:00:14]}  Be3+ {[%clk 0:00:32]} 30. Kh1 {[%clk 0:00:13]}  Qg5 {[%clk 0:00:27]} 31. Rxf8+ {[%clk 0:00:13]}  Rxf8 {[%clk 0:00:27]} 32. Rf1 {[%clk 0:00:14]}  Rxf1+ {[%clk 0:00:08]} 33. Bxf1 {[%clk 0:00:14]}  Qf4 {[%clk 0:00:09]} 34. Qe2 {[%clk 0:00:15]}  Qxe4 {[%clk 0:00:06]} 35. Qf3 {[%clk 0:00:07]}  Qxf3 {[%clk 0:00:02]} 36. gxf3 {[%clk 0:00:08]}  Bc1 {[%clk 0:00:02]} 37. Bb5 {[%clk 0:00:08]}  Bxa3 {[%clk 0:00:02]} 38. Bxa4 {[%clk 0:00:09]}  Bxb4 {[%clk 0:00:03]} 39. Kg2 {[%clk 0:00:09]}  Kg7 {[%clk 0:00:04]} 40. Bc2 {[%clk 0:00:08]}  Kf6 {[%clk 0:00:04]} 41. Bd3 {[%clk 0:00:08]}  Bc5 {[%clk 0:00:04]} 42. Kf1 {[%clk 0:00:08]}  Kg5 {[%clk 0:00:03]} 43. Kg2 {[%clk 0:00:06]}  Bd4 {[%clk 0:00:03]} 44. Kf1 {[%clk 0:00:01]}  b6 {[%clk 0:00:04]} 45. Kg2 {[%clk 0:00:02]}  Bc5 {[%clk 0:00:04]} 46. Bc2 {[%clk 0:00:01]}  Kf6 {[%clk 0:00:04]} 47. Bd3 {[%clk 0:00:02]}  Be3 {[%clk 0:00:03]} 48. Kf1 {[%clk 0:00:02]}  Bd4 {[%clk 0:00:03]} 49. Ke2 {[%clk 0:00:03]}  Kg7 {[%clk 0:00:04]} 50. Kd1 {[%clk 0:00:03]}  Kh6 {[%clk 0:00:04]} 51. Ke2 {[%clk 0:00:03]}  Kg5 {[%clk 0:00:05]} 52. Kf1 {[%clk 0:00:04]}  Be3 {[%clk 0:00:04]} 53. Kg2 {[%clk 0:00:04]}  Bc1 {[%clk 0:00:05]} 54. Kf1 {[%clk 0:00:05]}  Bb2 {[%clk 0:00:05]} 55. Kg2 {[%clk 0:00:05]}  h4 {[%clk 0:00:05]} 56. Kf2 {[%clk 0:00:05]}  Bd4+ {[%clk 0:00:05]} 57. Kg2 {[%clk 0:00:04]}  Be3 {[%clk 0:00:05]} 58. Kf1 {[%clk 0:00:04]}  Kf4 {[%clk 0:00:05]} 59. Bxg6 {[%clk 0:00:02]}  Kxf3 {[%clk 0:00:05]} 60. Ke1 {[%clk 0:00:02]}  e4 {[%clk 0:00:03]} 61. Bh5+ {[%clk 0:00:02]}  Kg3 {[%clk 0:00:03]} 62. Bg6 {[%clk 0:00:03]}  Kf4 {[%clk 0:00:03]} 63. Ke2 {[%clk 0:00:03]}  Bc5 {[%clk 0:00:03]} 64. Be8 {[%clk 0:00:03]}  Ke5 {[%clk 0:00:04]} 65. Bc6 {[%clk 0:00:03]}  Kd4 {[%clk 0:00:04]} 66. Kd2 {[%clk 0:00:03]}  Bb4+ {[%clk 0:00:04]} 67. Ke2 {[%clk 0:00:03]}  Bc3 {[%clk 0:00:05]} 68. Ba8 {[%clk 0:00:03]}  b5 {[%clk 0:00:05]} 69. Bc6 {[%clk 0:00:01]}  b4 {[%clk 0:00:06]} 0-1


[Site "https://www.chess.com"]

[Event "Titled Tuesday Blitz July 25 Early 2023"]
[White "Pranav, V"]
[Black "Matinian, Nikita"]
[WhiteFideId "25060783"]
[BlackFideId "24129100"]
[WhiteElo "2996"]
[BlackElo "2753"]
[Result "1-0"]
[Round "8"]
[TimeControl "180+2"]
[Date "2023.07.25"]
[WhiteClock "0:00:05"]
[BlackClock "0:00:02"]
[Board "19"]

1. e4 {[%clk 0:03:00]}  c5 {[%clk 0:02:56]} 2. Nf3 {[%clk 0:03:01]}  d6 {[%clk 0:02:56]} 3. d4 {[%clk 0:03:01]}  cxd4 {[%clk 0:02:56]} 4. Nxd4 {[%clk 0:03:02]}  Nf6 {[%clk 0:02:57]} 5. Nc3 {[%clk 0:03:03]}  g6 {[%clk 0:02:55]} 6. Be3 {[%clk 0:03:02]}  Bg7 {[%clk 0:02:50]} 7. f3 {[%clk 0:03:02]}  a6 {[%clk 0:02:51]} 8. Be2 {[%clk 0:02:58]}  Nbd7 {[%clk 0:02:50]} 9. O-O {[%clk 0:02:58]}  O-O {[%clk 0:02:49]} 10. a4 {[%clk 0:02:59]}  Nc5 {[%clk 0:02:38]} 11. Qd2 {[%clk 0:02:58]}  Bd7 {[%clk 0:02:36]} 12. Bh6 {[%clk 0:02:58]}  Bxh6 {[%clk 0:02:31]} 13. Qxh6 {[%clk 0:02:58]}  Qb6 {[%clk 0:02:31]} 14. a5 {[%clk 0:02:51]}  Qa7 {[%clk 0:02:09]} 15. Qe3 {[%clk 0:02:27]}  Rfc8 {[%clk 0:01:28]} 16. Rfd1 {[%clk 0:02:08]}  Ne6 {[%clk 0:01:20]} 17. Kf2 {[%clk 0:02:02]}  Nxd4 {[%clk 0:01:16]} 18. Qxd4 {[%clk 0:02:01]}  Qxd4+ {[%clk 0:01:16]} 19. Rxd4 {[%clk 0:02:02]}  Rc5 {[%clk 0:01:17]} 20. Rb4 {[%clk 0:01:48]}  Bc6 {[%clk 0:01:07]} 21. Rc4 {[%clk 0:01:44]}  Rxc4 {[%clk 0:01:05]} 22. Bxc4 {[%clk 0:01:44]}  Rc8 {[%clk 0:01:06]} 23. Bd3 {[%clk 0:01:42]}  e5 {[%clk 0:01:02]} 24. g4 {[%clk 0:01:30]}  h6 {[%clk 0:01:00]} 25. h4 {[%clk 0:01:30]}  Kf8 {[%clk 0:00:56]} 26. Nd1 {[%clk 0:01:21]}  d5 {[%clk 0:00:52]} 27. exd5 {[%clk 0:01:15]}  Nxd5 {[%clk 0:00:53]} 28. Ne3 {[%clk 0:01:15]}  Nf4 {[%clk 0:00:52]} 29. Bf1 {[%clk 0:01:12]}  Rd8 {[%clk 0:00:31]} 30. Nc4 {[%clk 0:01:11]}  f6 {[%clk 0:00:30]} 31. Ke3 {[%clk 0:00:51]}  Kf7 {[%clk 0:00:27]} 32. Nd2 {[%clk 0:00:43]}  f5 {[%clk 0:00:24]} 33. gxf5 {[%clk 0:00:39]}  gxf5 {[%clk 0:00:25]} 34. Bc4+ {[%clk 0:00:39]}  Kf6 {[%clk 0:00:25]} 35. Rg1 {[%clk 0:00:39]}  Nd5+ {[%clk 0:00:18]} 36. Bxd5 {[%clk 0:00:33]}  Rxd5 {[%clk 0:00:19]} 37. b4 {[%clk 0:00:19]}  Rd4 {[%clk 0:00:15]} 38. h5 {[%clk 0:00:19]}  Be8 {[%clk 0:00:13]} 39. c3 {[%clk 0:00:18]}  Rh4 {[%clk 0:00:13]} 40. Rg8 {[%clk 0:00:17]}  Bxh5 {[%clk 0:00:13]} 41. Rb8 {[%clk 0:00:17]}  f4+ {[%clk 0:00:14]} 42. Kd3 {[%clk 0:00:16]}  Bg6+ {[%clk 0:00:14]} 43. Ne4+ {[%clk 0:00:14]}  Bxe4+ {[%clk 0:00:13]} 44. Kxe4 {[%clk 0:00:15]}  Rh2 {[%clk 0:00:14]} 45. Rxb7 {[%clk 0:00:10]}  Re2+ {[%clk 0:00:14]} 46. Kd5 {[%clk 0:00:10]}  Re3 {[%clk 0:00:12]} 47. c4 {[%clk 0:00:06]}  Rxf3 {[%clk 0:00:12]} 48. b5 {[%clk 0:00:06]}  axb5 {[%clk 0:00:12]} 49. cxb5 {[%clk 0:00:07]}  Ra3 {[%clk 0:00:11]} 50. a6 {[%clk 0:00:07]}  f3 {[%clk 0:00:10]} 51. Rb8 {[%clk 0:00:08]}  Kf5 {[%clk 0:00:08]} 52. Rf8+ {[%clk 0:00:07]}  Kg4 {[%clk 0:00:08]} 53. Kxe5 {[%clk 0:00:06]}  Ra5 {[%clk 0:00:08]} 54. Ke4 {[%clk 0:00:07]}  Ra4+ {[%clk 0:00:08]} 55. Kd5 {[%clk 0:00:05]}  Rf4 {[%clk 0:00:05]} 56. Rxf4+ {[%clk 0:00:04]}  Kxf4 {[%clk 0:00:02]} 57. a7 {[%clk 0:00:05]} 1-0


[Site "https://www.chess.com"]

[Event "Titled Tuesday Blitz July 25 Early 2023"]
[White "Skvortsov, Andrei"]
[Black "Svane, Rasmus"]
[WhiteFideId "24108600"]
[BlackFideId "4657101"]
[WhiteElo "2740"]
[BlackElo "2964"]
[Result "0-1"]
[Round "8"]
[TimeControl "180+2"]
[Date "2023.07.25"]
[WhiteClock "0:00:00"]
[BlackClock "0:00:52"]
[Board "23"]

1. e4 {[%clk 0:03:00]}  c6 {[%clk 0:02:55]} 2. Nc3 {[%clk 0:03:00]}  d5 {[%clk 0:02:56]} 3. Nf3 {[%clk 0:03:01]}  dxe4 {[%clk 0:02:56]} 4. Nxe4 {[%clk 0:03:02]}  Nf6 {[%clk 0:02:56]} 5. Qe2 {[%clk 0:02:57]}  Nxe4 {[%clk 0:02:57]} 6. Qxe4 {[%clk 0:02:58]}  Qa5 {[%clk 0:02:57]} 7. Bc4 {[%clk 0:02:48]}  Bf5 {[%clk 0:02:56]} 8. Qe3 {[%clk 0:02:49]}  e6 {[%clk 0:02:56]} 9. O-O {[%clk 0:02:46]}  Be7 {[%clk 0:02:47]} 10. Nd4 {[%clk 0:02:41]}  O-O {[%clk 0:02:43]} 11. Nxf5 {[%clk 0:02:38]}  Qxf5 {[%clk 0:02:43]} 12. d4 {[%clk 0:02:38]}  Qxc2 {[%clk 0:02:36]} 13. Bd3 {[%clk 0:02:38]}  Qa4 {[%clk 0:02:35]} 14. Bd2 {[%clk 0:02:30]}  Nd7 {[%clk 0:02:32]} 15. a3 {[%clk 0:02:20]}  Bf6 {[%clk 0:02:12]} 16. Qe4 {[%clk 0:02:10]}  g6 {[%clk 0:02:06]} 17. Bb4 {[%clk 0:02:06]}  Rfd8 {[%clk 0:01:51]} 18. Bc4 {[%clk 0:01:47]}  c5 {[%clk 0:01:50]} 19. dxc5 {[%clk 0:01:39]}  a5 {[%clk 0:01:48]} 20. Bc3 {[%clk 0:00:53]}  Bxc3 {[%clk 0:01:43]} 21. bxc3 {[%clk 0:00:53]}  Nxc5 {[%clk 0:01:43]} 22. Qe2 {[%clk 0:00:53]}  Qc6 {[%clk 0:01:33]} 23. Rab1 {[%clk 0:00:51]}  b6 {[%clk 0:01:29]} 24. Qe3 {[%clk 0:00:35]}  Rd6 {[%clk 0:01:27]} 25. Rfc1 {[%clk 0:00:32]}  Rad8 {[%clk 0:01:27]} 26. h3 {[%clk 0:00:30]}  Qe4 {[%clk 0:01:27]} 27. Qxe4 {[%clk 0:00:17]}  Nxe4 {[%clk 0:01:28]} 28. Rb2 {[%clk 0:00:14]}  Rc8 {[%clk 0:01:25]} 29. Bf1 {[%clk 0:00:11]}  Rxc3 {[%clk 0:01:10]} 30. Rcb1 {[%clk 0:00:06]}  Rxa3 {[%clk 0:01:11]} 31. g3 {[%clk 0:00:03]}  Nd2 {[%clk 0:01:06]} 32. Rc1 {[%clk 0:00:02]}  Nxf1 {[%clk 0:01:06]} 33. Kxf1 {[%clk 0:00:03]}  Rad3 {[%clk 0:01:00]} 34. Kg2 {[%clk 0:00:02]}  Rd2 {[%clk 0:00:59]} 35. Rb5 {[%clk 0:00:02]}  Ra2 {[%clk 0:00:57]} 36. h4 {[%clk 0:00:02]}  Rdd2 {[%clk 0:00:56]} 37. Kf3 {[%clk 0:00:01]}  Rxf2+ {[%clk 0:00:56]} 38. Kg4 {[%clk 0:00:01]}  Kg7 {[%clk 0:00:52]} 39. Rxb6 {[%clk 0:00:00]}  h5+ {[%clk 0:00:52]} 0-1


[Site "https://www.chess.com"]

[Event "Titled Tuesday Blitz July 25 Early 2023"]
[White "Bauman_Guy"]
[Black "Kovalev, Vladislav"]
[BlackFideId "13504398"]
[WhiteElo "2760"]
[BlackElo "2951"]
[Result "1-0"]
[Round "8"]
[TimeControl "180+2"]
[Date "2023.07.25"]
[WhiteClock "0:00:20"]
[BlackClock "0:00:02"]
[Board "26"]

1. e4 {[%clk 0:01:53]}  e5 {[%clk 0:01:19]} 2. Nf3 {[%clk 0:01:52]}  Nc6 {[%clk 0:01:19]} 3. Bb5 {[%clk 0:01:53]}  a6 {[%clk 0:01:19]} 4. Ba4 {[%clk 0:01:52]}  Nf6 {[%clk 0:01:19]} 5. O-O {[%clk 0:01:53]}  Be7 {[%clk 0:01:20]} 6. Re1 {[%clk 0:01:53]}  b5 {[%clk 0:01:20]} 7. Bb3 {[%clk 0:01:53]}  d6 {[%clk 0:01:21]} 8. c3 {[%clk 0:01:52]}  O-O {[%clk 0:01:21]} 9. h3 {[%clk 0:01:51]}  Na5 {[%clk 0:01:22]} 10. Bc2 {[%clk 0:01:50]}  c5 {[%clk 0:01:22]} 11. d4 {[%clk 0:01:50]}  Qc7 {[%clk 0:01:23]} 12. d5 {[%clk 0:01:50]}  Nc4 {[%clk 0:01:23]} 13. b3 {[%clk 0:01:48]}  Nb6 {[%clk 0:01:24]} 14. Be3 {[%clk 0:01:48]}  Bd7 {[%clk 0:01:19]} 15. Nbd2 {[%clk 0:01:48]}  a5 {[%clk 0:01:17]} 16. a3 {[%clk 0:01:44]}  a4 {[%clk 0:01:10]} 17. b4 {[%clk 0:01:43]}  cxb4 {[%clk 0:01:10]} 18. cxb4 {[%clk 0:01:44]}  Rfc8 {[%clk 0:00:44]} 19. Bd3 {[%clk 0:01:44]}  Nc4 {[%clk 0:00:45]} 20. Qe2 {[%clk 0:01:39]}  Nxe3 {[%clk 0:00:39]} 21. Qxe3 {[%clk 0:01:38]}  Qc3 {[%clk 0:00:35]} 22. Qe2 {[%clk 0:01:35]}  Rab8 {[%clk 0:00:34]} 23. Kh2 {[%clk 0:01:25]}  g6 {[%clk 0:00:34]} 24. g3 {[%clk 0:01:25]}  Bd8 {[%clk 0:00:34]} 25. Kg2 {[%clk 0:01:22]}  Bb6 {[%clk 0:00:34]} 26. Ra2 {[%clk 0:01:12]}  Ba7 {[%clk 0:00:28]} 27. Nb1 {[%clk 0:01:05]}  Qc7 {[%clk 0:00:27]} 28. Rc2 {[%clk 0:01:04]}  Qb6 {[%clk 0:00:26]} 29. Rec1 {[%clk 0:01:05]}  Rxc2 {[%clk 0:00:26]} 30. Rxc2 {[%clk 0:01:05]}  Kg7 {[%clk 0:00:19]} 31. Nc3 {[%clk 0:00:59]}  h5 {[%clk 0:00:15]} 32. Ng5 {[%clk 0:00:57]}  h4 {[%clk 0:00:13]} 33. g4 {[%clk 0:00:54]}  Nh7 {[%clk 0:00:12]} 34. Nxh7 {[%clk 0:00:43]}  Kxh7 {[%clk 0:00:13]} 35. Nd1 {[%clk 0:00:43]}  Qd8 {[%clk 0:00:13]} 36. Nc3 {[%clk 0:00:41]}  Qb6 {[%clk 0:00:09]} 37. Nd1 {[%clk 0:00:32]}  Kg7 {[%clk 0:00:09]} 38. Qe3 {[%clk 0:00:28]}  Qxe3 {[%clk 0:00:04]} 39. Nxe3 {[%clk 0:00:28]}  Rb7 {[%clk 0:00:04]} 40. Kf3 {[%clk 0:00:27]}  Kf8 {[%clk 0:00:04]} 41. Ng2 {[%clk 0:00:25]}  g5 {[%clk 0:00:02]} 42. Ke2 {[%clk 0:00:26]}  Ke7 {[%clk 0:00:02]} 43. Ne1 {[%clk 0:00:26]}  Bd4 {[%clk 0:00:02]} 44. Nf3 {[%clk 0:00:26]}  f6 {[%clk 0:00:02]} 45. Nxd4 {[%clk 0:00:26]}  exd4 {[%clk 0:00:03]} 46. Kd2 {[%clk 0:00:25]}  Kd8 {[%clk 0:00:03]} 47. Be2 {[%clk 0:00:25]}  Rc7 {[%clk 0:00:03]} 48. Rxc7 {[%clk 0:00:25]}  Kxc7 {[%clk 0:00:03]} 49. Kd3 {[%clk 0:00:25]}  Kd8 {[%clk 0:00:04]} 50. Kxd4 {[%clk 0:00:26]}  Ke7 {[%clk 0:00:04]} 51. Ke3 {[%clk 0:00:26]}  Kf7 {[%clk 0:00:04]} 52. f4 {[%clk 0:00:22]}  Ke7 {[%clk 0:00:02]} 53. Bd3 {[%clk 0:00:23]}  Kf7 {[%clk 0:00:02]} 54. fxg5 {[%clk 0:00:18]}  fxg5 {[%clk 0:00:02]} 55. Kd4 {[%clk 0:00:19]}  Kf6 {[%clk 0:00:02]} 56. e5+ {[%clk 0:00:20]}  dxe5+ {[%clk 0:00:03]} 57. Kc5 {[%clk 0:00:20]}  e4 {[%clk 0:00:02]} 58. Bxe4 {[%clk 0:00:19]}  Ke5 {[%clk 0:00:03]} 59. Bd3 {[%clk 0:00:20]}  Kf4 {[%clk 0:00:02]} 60. Bxb5 {[%clk 0:00:19]}  Bxg4 {[%clk 0:00:01]} 61. hxg4 {[%clk 0:00:19]}  h3 {[%clk 0:00:02]} 62. d6 {[%clk 0:00:20]}  h2 {[%clk 0:00:02]} 63. Bc6 {[%clk 0:00:20]} 1-0


[Site "https://www.chess.com"]

[Event "Titled Tuesday Blitz July 25 Early 2023"]
[White "Bernadskiy, Vitaliy"]
[Black "Kuznetsov, Felix"]
[WhiteFideId "14100371"]
[BlackFideId "34147990"]
[WhiteElo "2886"]
[BlackElo "2721"]
[Result "1/2-1/2"]
[Round "8"]
[TimeControl "180+2"]
[Date "2023.07.25"]
[WhiteClock "0:00:05"]
[BlackClock "0:00:39"]
[Board "28"]

1. e4 {[%clk 0:00:09]}  c5 {[%clk 0:02:58]} 2. Nf3 {[%clk 0:00:09]}  Nc6 {[%clk 0:02:59]} 3. b3 {[%clk 0:00:08]}  d6 {[%clk 0:02:58]} 4. Nc3 {[%clk 0:00:09]}  g6 {[%clk 0:02:58]} 5. Bb2 {[%clk 0:00:10]}  Bg7 {[%clk 0:02:58]} 6. Bb5 {[%clk 0:00:10]}  Bd7 {[%clk 0:02:58]} 7. Bxc6 {[%clk 0:00:11]}  Bxc6 {[%clk 0:02:59]} 8. d3 {[%clk 0:00:11]}  e6 {[%clk 0:02:57]} 9. Qd2 {[%clk 0:00:11]}  Ne7 {[%clk 0:02:57]} 10. O-O {[%clk 0:00:11]}  O-O {[%clk 0:02:57]} 11. Nd1 {[%clk 0:00:12]}  Bxb2 {[%clk 0:02:52]} 12. Nxb2 {[%clk 0:00:13]}  e5 {[%clk 0:02:49]} 13. Nc4 {[%clk 0:00:12]}  Kg7 {[%clk 0:02:35]} 14. Ng5 {[%clk 0:00:11]}  h6 {[%clk 0:02:33]} 15. Nh3 {[%clk 0:00:11]}  f5 {[%clk 0:02:31]} 16. f4 {[%clk 0:00:10]}  fxe4 {[%clk 0:02:24]} 17. dxe4 {[%clk 0:00:11]}  Bxe4 {[%clk 0:02:19]} 18. Nxd6 {[%clk 0:00:10]}  Bf5 {[%clk 0:02:16]} 19. fxe5 {[%clk 0:00:10]}  Bxh3 {[%clk 0:02:15]} 20. gxh3 {[%clk 0:00:11]}  Nf5 {[%clk 0:01:41]} 21. Nxf5+ {[%clk 0:00:10]}  Rxf5 {[%clk 0:01:41]} 22. Qxd8 {[%clk 0:00:10]}  Rxd8 {[%clk 0:01:40]} 23. Rxf5 {[%clk 0:00:09]}  gxf5 {[%clk 0:01:41]} 24. Kf2 {[%clk 0:00:09]}  Rd2+ {[%clk 0:01:40]} 25. Kf3 {[%clk 0:00:09]}  Rxh2 {[%clk 0:01:33]} 26. Rd1 {[%clk 0:00:10]}  Rxc2 {[%clk 0:01:26]} 27. Rd7+ {[%clk 0:00:09]}  Kg6 {[%clk 0:01:26]} 28. Rxb7 {[%clk 0:00:09]}  Rxa2 {[%clk 0:01:26]} 29. Rc7 {[%clk 0:00:08]}  Rb2 {[%clk 0:01:23]} 30. Kf4 {[%clk 0:00:05]}  Rf2+ {[%clk 0:01:18]} 31. Ke3 {[%clk 0:00:05]}  Rh2 {[%clk 0:01:18]} 32. Kf4 {[%clk 0:00:06]}  Rf2+ {[%clk 0:01:17]} 33. Ke3 {[%clk 0:00:06]}  Rh2 {[%clk 0:00:39]} 34. Kf4 {[%clk 0:00:05]}  Rf2+ {[%clk 0:00:39]} 1/2-1/2


[Site "https://www.chess.com"]

[Event "Titled Tuesday Blitz July 25 Early 2023"]
[White "Vaishali, Rameshbabu"]
[Black "Bacrot, Etienne"]
[WhiteFideId "5091756"]
[BlackFideId "605506"]
[WhiteElo "2720"]
[BlackElo "2869"]
[Result "0-1"]
[Round "8"]
[TimeControl "180+2"]
[Date "2023.07.25"]
[WhiteClock "0:00:00"]
[BlackClock "0:00:13"]
[Board "29"]

1. e4 {[%clk 0:03:00]}  c5 {[%clk 0:02:59]} 2. Nf3 {[%clk 0:03:00]}  d6 {[%clk 0:03:00]} 3. Bb5+ {[%clk 0:02:59]}  Nc6 {[%clk 0:02:59]} 4. O-O {[%clk 0:02:59]}  Bd7 {[%clk 0:02:59]} 5. Re1 {[%clk 0:02:50]}  Nf6 {[%clk 0:02:58]} 6. c3 {[%clk 0:02:50]}  a6 {[%clk 0:02:58]} 7. Bf1 {[%clk 0:02:49]}  Rg8 {[%clk 0:02:19]} 8. d4 {[%clk 0:02:46]}  cxd4 {[%clk 0:02:18]} 9. cxd4 {[%clk 0:02:47]}  Bg4 {[%clk 0:02:08]} 10. Nc3 {[%clk 0:02:37]}  Bxf3 {[%clk 0:02:04]} 11. gxf3 {[%clk 0:02:25]}  g5 {[%clk 0:02:04]} 12. Be3 {[%clk 0:02:00]}  e6 {[%clk 0:01:50]} 13. d5 {[%clk 0:01:47]}  Ne5 {[%clk 0:01:49]} 14. Bg2 {[%clk 0:01:30]}  Be7 {[%clk 0:01:23]} 15. dxe6 {[%clk 0:01:18]}  fxe6 {[%clk 0:01:23]} 16. Kh1 {[%clk 0:01:13]}  Qd7 {[%clk 0:01:15]} 17. Na4 {[%clk 0:00:56]}  Rd8 {[%clk 0:01:08]} 18. Rc1 {[%clk 0:00:52]}  Nh5 {[%clk 0:00:55]} 19. Nb6 {[%clk 0:00:45]}  Qb5 {[%clk 0:00:55]} 20. Re2 {[%clk 0:00:17]}  Nf4 {[%clk 0:00:52]} 21. Rd2 {[%clk 0:00:16]}  Nxg2 {[%clk 0:00:36]} 22. Kxg2 {[%clk 0:00:17]}  g4 {[%clk 0:00:37]} 23. f4 {[%clk 0:00:14]}  Nf3 {[%clk 0:00:37]} 24. f5 {[%clk 0:00:04]}  Nxd2 {[%clk 0:00:34]} 25. Qxd2 {[%clk 0:00:05]}  exf5 {[%clk 0:00:34]} 26. Rc7 {[%clk 0:00:05]}  Qe5 {[%clk 0:00:16]} 27. Nd5 {[%clk 0:00:05]}  Qxe4+ {[%clk 0:00:16]} 28. Kg1 {[%clk 0:00:05]}  Rd7 {[%clk 0:00:15]} 29. Rc8+ {[%clk 0:00:03]}  Kf7 {[%clk 0:00:16]} 30. Rxg8 {[%clk 0:00:02]}  Kxg8 {[%clk 0:00:16]} 31. Bh6 {[%clk 0:00:01]}  Qb1+ {[%clk 0:00:16]} 32. Kg2 {[%clk 0:00:01]}  Qe4+ {[%clk 0:00:16]} 33. Kg1 {[%clk 0:00:02]}  Kf7 {[%clk 0:00:17]} 34. Nc3 {[%clk 0:00:01]}  Qe6 {[%clk 0:00:15]} 35. Qd4 {[%clk 0:00:01]}  Bf6 {[%clk 0:00:15]} 36. Qd2 {[%clk 0:00:02]}  Bxc3 {[%clk 0:00:15]} 37. bxc3 {[%clk 0:00:01]}  Re7 {[%clk 0:00:15]} 38. Kg2 {[%clk 0:00:01]}  Qe4+ {[%clk 0:00:15]} 39. Kg3 {[%clk 0:00:02]}  Qf3+ {[%clk 0:00:15]} 40. Kh4 {[%clk 0:00:03]}  Re6 {[%clk 0:00:13]} 41. Qd4 {[%clk 0:00:00]}  Qh3+ {[%clk 0:00:13]} 0-1


[Site "https://www.chess.com"]